bitfinex/quotes_ETHUSD_20240709
["timestamp","ask_amount","ask_price","bid_price","bid_amount"]
[1720539116223,4.60576382,3054.1,3054.0,0.149]
[1720539116468,4.60660212,3054.1,3054.0,0.149]
[1720539116631,2.91682094,3054.1,3054.0,0.149]
[1720539116971,7.59842931,3054.1,3054.0,0.149]
[1720539117123,9.12065057,3054.1,3054.0,0.149]
[1720539117323,11.82769077,3054.1,3054.0,0.149]
[1720539117646,9.4619489,3054.1,3054.0,0.149]
[1720539117852,12.9149489,3054.1,3053.8,0.05]
[1720539118029,8.21141923,3054.0,3053.8,0.05]
[1720539118224,3.453,3053.4,3050.8,2.3757]
[1720539118460,1.35067344,3052.1,3050.8,2.3757]
[1720539118621,1.35067344,3051.7,3050.8,2.3757]
[1720539118821,2.73216149,3051.6,3050.8,2.3757]
[1720539119126,2.73216149,3051.6,3050.9,0.24892974]
[1720539119127,1.13464604,3051.5,3050.9,0.24892974]
[1720539119469,1.6883418,3051.8,3050.9,0.24892974]
[1720539119470,0.08192807,3051.7,3050.9,0.24892974]
[1720539119627,0.08192807,3051.9,3051.0,0.54936297]
[1720539119822,1.13548331,3051.8,3051.2,2.869]
[1720539120022,1.35067344,3052.2,3051.3,0.2869]
[1720539120246,1.13537023,3052.1,3051.3,0.2869]
[1720539120463,1.13536712,3052.0,3051.3,0.06554074]
[1720539120824,1.34810704,3052.4,3051.5,2.869]
[1720539121133,2.35918732,3053.2,3051.5,2.869]
[1720539121134,1.34810704,3053.0,3051.9,2.869]
[1720539121335,1.30040045,3052.9,3051.7,2.4632]
[1720539121529,4.07036304,3052.8,3051.7,2.4632]
[1720539121879,3.453,3053.1,3051.7,2.4632]
[1720539121880,2.73063025,3052.7,3051.7,2.4632]
[1720539122049,1.13524865,3052.6,3051.9,2.869]
[1720539122228,2.021979,3053.5,3052.0,0.2869]
[1720539122427,1.34634156,3053.1,3051.7,2.4632]
[1720539122646,2.28330955,3053.0,3051.7,2.4632]
[1720539122860,1.49802441,3052.9,3051.7,2.4632]
[1720539123043,3.79501553,3052.8,3051.7,2.4632]
[1720539123227,1.38237827,3052.7,3051.7,2.4632]
[1720539123455,1.13521289,3052.6,3051.7,2.4632]
[1720539123689,1.13521289,3052.6,3051.2,6.2287]
[1720539123690,0.08191615,3052.5,3051.2,6.2287]
[1720539123841,1.10862897,3052.5,3051.2,2.3977]
[1720539124160,1.30058636,3052.4,3051.2,2.3977]
[1720539124378,2.14269818,3052.3,3050.7,3.9445974]
[1720539124528,2.14269818,3052.3,3050.7,0.1135974]
[1720539124529,3.453,3052.1,3050.7,0.1135974]
[1720539124728,2.54631289,3052.0,3050.7,0.17915377]
[1720539124959,2.54631289,3052.0,3050.7,0.1135974]
[1720539124960,1.76755198,3051.9,3050.7,0.1135974]
[1720539125159,1.1356138,3051.8,3050.7,0.1135974]
[1720539125362,0.63194552,3051.7,3050.7,0.1135974]
[1720539126200,0.08194552,3051.7,3050.7,0.1135974]
[1720539126358,0.55,3051.6,3050.7,0.1135974]
[1720539126559,0.08194786,3051.5,3050.7,0.1135974]
[1720539127166,0.55,3051.4,3050.7,0.1135974]
[1720539127522,0.08195146,3051.3,3050.7,0.1135974]
[1720539127725,1.4111,3052.0,3050.7,0.1135974]
[1720539127726,0.13894718,3051.9,3050.7,0.1135974]
[1720539127888,0.55,3051.8,3050.7,0.1135974]
[1720539128225,0.08194491,3051.7,3050.7,0.1135974]
[1720539128399,0.55,3051.6,3050.7,0.1135974]
[1720539128601,0.08194543,3051.5,3050.7,0.1135974]
[1720539129487,0.55,3051.4,3050.7,0.1135974]
[1720539129727,1.49305561,3051.3,3050.7,0.1135974]
[1720539130029,1.18156762,3051.2,3050.7,0.1135974]
[1720539130234,3.63196206,3051.2,3050.7,0.1135974]
[1720539130597,0.63196206,3051.2,3050.7,0.1135974]
[1720539131102,0.08195296,3051.1,3050.7,0.1135974]
[1720539131728,0.55,3051.0,3050.7,0.1135974]
[1720539131890,0.0819624,3050.9,3050.7,0.1135974]
[1720539132091,0.55,3050.8,3050.7,0.1135974]
[1720539132290,0.95849624,3050.8,3050.7,0.1135974]
[1720539132521,0.55,3050.8,3050.7,0.1135974]
[1720539132704,4.4111,3051.6,3050.7,0.1135974]
[1720539133031,0.63195345,3051.5,3050.7,0.1135974]
[1720539133227,3.63195345,3051.5,3050.7,0.1135974]
[1720539133633,3.0,3051.4,3050.7,0.1135974]
[1720539133841,0.55,3051.3,3050.7,0.1135974]
[1720539134142,0.08195388,3051.3,3050.7,0.1135974]
[1720539134356,3.831,3052.9,3050.7,2.5364974]
[1720539134499,3.831,3052.9,3050.7,3.11795514]
[1720539134500,0.08193113,3052.1,3050.7,3.11795514]
[1720539134850,0.54406776,3052.0,3050.8,3.85060561]
[1720539134995,0.54406776,3052.0,3051.2,3.27733]
[1720539135196,0.54406776,3052.0,3051.3,2.4133]
[1720539135816,0.08192322,3051.9,3051.3,2.4133]
[1720539136027,0.08192322,3051.9,3050.7,2.5268974]
[1720539136194,3.53492322,3051.9,3050.7,2.5268974]
[1720539136399,0.4078991,3051.8,3050.7,2.5268974]
[1720539136617,0.08194946,3051.7,3050.7,2.5268974]
[1720539137200,0.55,3051.6,3050.7,2.5268974]
[1720539137436,0.08194469,3051.5,3050.7,2.5268974]
[1720539138351,0.55,3051.4,3050.7,2.5268974]
[1720539138510,0.08194928,3051.3,3050.7,2.5268974]
[1720539138906,0.63194926,3051.2,3050.7,0.1135974]
[1720539140001,0.08194926,3051.2,3050.7,0.1135974]
[1720539140204,0.44454928,3051.2,3050.7,0.1135974]
[1720539140404,0.08194758,3051.2,3050.7,0.1135974]
[1720539140926,0.55,3051.1,3050.7,0.1135974]
[1720539141232,0.08196359,3051.0,3050.7,0.1135974]
[1720539141415,0.55,3050.9,3050.7,0.1135974]
[1720539141616,0.08196372,3050.8,3050.7,0.1135974]
[1720539141808,1.09486687,3050.8,3050.7,0.1135974]
[1720539142146,4.09486687,3050.8,3050.7,0.1135974]
[1720539142352,0.55,3050.8,3050.7,0.1135974]
[1720539142572,0.54406776,3051.0,3050.7,0.1135974]
[1720539143436,0.08195383,3050.9,3050.7,0.1135974]
[1720539144256,0.55,3050.8,3050.7,0.1135974]
[1720539145230,0.96760216,3050.8,3050.7,0.1135974]
[1720539146063,0.41760216,3050.8,3050.7,0.1135974]
[1720539146423,0.54406776,3051.0,3050.7,0.1135974]
[1720539146660,0.08195256,3050.9,3050.7,0.1135974]
[1720539147734,1.13590662,3050.8,3050.7,0.1135974]
[1720539147939,0.08195256,3050.9,3050.7,0.1135974]
[1720539148351,0.54406776,3051.0,3050.7,2.4119974]
[1720539149330,12.15,3051.6,3050.7,2.65319714]
[1720539149331,0.54406776,3051.4,3050.7,2.65319714]
[1720539149658,0.54406776,3051.4,3050.7,2.4119974]
[1720539151177,0.08193714,3051.3,3050.7,2.4119974]
[1720539151735,1.13573854,3051.2,3050.7,2.4119974]
[1720539151976,1.21768942,3051.1,3050.7,2.4119974]
[1720539152136,0.08194835,3051.3,3050.7,2.4119974]
[1720539152468,1.13569899,3051.2,3050.7,2.4119974]
[1720539152878,0.08194877,3051.2,3050.7,2.4119974]
[1720539153169,0.54406776,3051.4,3050.7,2.4119974]
[1720539153754,1.13559907,3051.3,3050.7,2.4119974]
[1720539153934,0.08193951,3051.2,3050.7,2.4119974]
[1720539154155,1.13567776,3051.1,3050.7,2.4119974]
[1720539154355,0.08194583,3051.3,3050.7,2.4119974]
[1720539154558,1.13570896,3051.2,3050.7,2.4119974]
[1720539154767,0.54406776,3051.4,3050.7,2.65319714]
[1720539154978,1.13561776,3051.3,3050.7,2.65319714]
[1720539155143,0.54406776,3051.4,3050.7,2.65319714]
[1720539155343,0.54406776,3051.4,3050.9,2.3353]
[1720539155665,0.54406776,3051.4,3050.9,8.67855241]
[1720539155968,0.54406776,3051.7,3051.2,2.4848]
[1720539156176,19.47,3051.9,3051.2,5.4848]
[1720539156388,19.47,3051.9,3051.4,3.2771]
[1720539156565,12.69406776,3052.0,3051.3,0.06553775]
[1720539156566,0.54406776,3052.0,3051.5,2.4848]
[1720539156768,0.54406776,3052.0,3051.9,3.27664]
[1720539156935,12.69406776,3052.5,3051.9,5.4848]
[1720539157288,1.21709988,3052.4,3051.9,2.4848]
[1720539157572,1.13519907,3052.3,3051.9,2.4848]
[1720539157885,1.13531086,3052.2,3051.9,2.4848]
[1720539158178,0.08191647,3052.2,3051.0,2.4848]
[1720539158399,1.13532452,3052.1,3051.0,2.4848]
[1720539158540,1.2172578,3052.0,3051.0,2.4848]
[1720539158734,1.13532452,3051.9,3051.0,2.4848]
[1720539158939,0.54406776,3052.2,3051.1,0.24848]
[1720539159140,0.54406776,3052.2,3051.0,5.76238]
[1720539159141,0.54406776,3052.2,3051.2,0.06553896]
[1720539159351,0.54406776,3052.2,3051.5,2.4164]
[1720539159585,0.54406776,3052.2,3051.6,3.846308]
[1720539160078,0.54406776,3052.2,3051.6,3.91183446]
[1720539160237,0.54406776,3052.2,3051.7,3.27685]
[1720539160438,0.34240226,3052.4,3051.8,3.27675]
[1720539160638,0.34240226,3052.4,3052.1,3.27642]
[1720539160868,0.34240226,3052.4,3052.2,3.27631]
[1720539161079,0.34240226,3052.4,3052.3,3.27621]
[1720539161787,0.34240226,3052.4,3052.3,11.86152]
[1720539162279,0.54406776,3052.9,3052.3,11.86152]
[1720539162280,0.54406776,3052.9,3052.5,3.27599]
[1720539162453,12.15,3053.2,3052.5,3.27599]
[1720539162661,12.15,3053.2,3052.4,4.462202]
[1720539162968,12.15,3053.2,3052.4,1.186152]
[1720539163174,12.15,3053.2,3052.8,3.27567]
[1720539163371,0.54406776,3053.3,3052.9,3.27557]
[1720539163574,0.54406776,3053.3,3053.1,3.27532]
[1720539163779,0.54406776,3053.3,3053.2,3.29702689]
[1720539163978,12.69406776,3053.8,3053.2,6.57225689]
[1720539164665,12.69406776,3053.8,3053.2,6.57218689]
[1720539164985,12.69406776,3053.8,3053.3,3.65721869]
[1720539165489,12.69406776,3053.8,3053.2,2.3354]
[1720539166152,0.34246385,3053.7,3053.2,2.3354]
[1720539167289,0.34246385,3053.7,3053.2,5.61056]
[1720539167485,0.34246385,3053.7,3053.2,2.3354]
[1720539169291,0.34246385,3053.7,3052.8,6.27567]
[1720539169292,0.54406776,3053.8,3053.1,2.304]
[1720539170615,0.54406776,3053.8,3053.1,2.5344]
[1720539173013,0.54406776,3053.8,3053.2,3.0]
[1720539173215,0.54406776,3053.8,3053.1,2.304]
[1720539177175,0.54406776,3053.8,3052.5,3.831]
[1720539177176,0.08187537,3053.7,3052.5,3.831]
[1720539177397,0.08187537,3053.7,3052.5,2.2723]
[1720539177776,0.54406776,3053.8,3051.5,2.3663]
[1720539177777,0.3283,3053.4,3051.5,2.3663]
[1720539177986,0.54406776,3053.0,3051.5,2.3663]
[1720539178205,0.54406776,3053.0,3051.0,3.831]
[1720539178206,0.0819154,3052.9,3051.0,3.831]
[1720539178379,2.54647998,3052.8,3051.1,5.64379]
[1720539178578,3.63191658,3052.7,3051.2,0.947479]
[1720539178778,0.54406776,3052.5,3051.2,0.947479]
[1720539179023,0.54406776,3052.5,3051.2,4.224859]
[1720539179024,0.62598498,3052.5,3051.2,4.224859]
[1720539179217,0.54406776,3052.5,3051.3,4.2641149]
[1720539179779,0.54406776,3052.5,3051.4,0.0655293]
[1720539179981,0.54406776,3052.5,3051.3,4.2641149]
[1720539179982,0.54406776,3052.5,3051.5,7.10797]
[1720539180333,0.54406776,3052.5,3052.0,3.831]
[1720539180476,12.69406776,3052.8,3052.0,3.831]
[1720539181300,1.4111,3053.4,3051.6,5.3777]
[1720539181514,1.76705319,3053.3,3051.6,5.3777]
[1720539181717,1.21705341,3053.2,3051.6,5.3777]
[1720539181879,1.68514863,3053.1,3051.6,5.3777]
[1720539182084,0.08190348,3053.0,3051.6,8.65465]
[1720539182425,0.08190348,3053.0,3051.6,2.3777]
[1720539182426,1.13520519,3052.9,3051.6,2.3777]
[1720539182727,0.08190471,3052.8,3051.6,2.3777]
[1720539182929,0.08190465,3053.3,3051.7,0.06552372]
[1720539183229,3.17633172,3054.4,3051.7,0.06552372]
[1720539183230,1.4111,3053.9,3052.5,3.831]
[1720539183398,1.13488823,3053.8,3052.6,3.07321648]
[1720539183720,0.34247816,3054.3,3052.6,3.07321648]
[1720539183721,0.08187551,3054.2,3052.7,0.0655004]
[1720539183926,1.13473228,3054.1,3052.8,0.63490704]
[1720539184080,0.08187347,3054.0,3052.8,0.63490704]
[1720539184407,0.34247816,3054.3,3052.9,3.6666097]
[1720539184612,1.21654985,3054.2,3052.8,3.91051704]
[1720539184795,1.21654985,3054.2,3052.6,3.00771]
[1720539184796,1.13468589,3054.1,3052.6,3.00771]
[1720539185014,0.08187552,3054.0,3052.7,3.0]
[1720539185294,0.08187552,3054.0,3052.8,0.600771]
[1720539185497,1.13471564,3053.9,3052.8,0.600771]
[1720539185688,0.34247816,3054.3,3052.8,0.600771]
[1720539186003,1.76658937,3054.2,3052.8,0.600771]
[1720539186210,1.34562326,3054.1,3052.8,0.600771]
[1720539186509,1.13471651,3054.0,3052.8,0.600771]
[1720539186705,0.29277998,3054.1,3052.8,3.876381]
[1720539186884,1.13466503,3054.0,3052.8,3.876381]
[1720539187086,0.08187323,3054.1,3052.8,3.876381]
[1720539187381,1.13467674,3054.0,3052.9,3.27554]
[1720539187590,1.4111,3055.0,3053.0,0.3876311]
[1720539187591,1.1346349,3053.9,3053.0,0.3876311]
[1720539187902,0.08186436,3054.2,3052.7,3.0]
[1720539188101,1.1347147,3054.1,3052.7,3.0]
[1720539188304,1.1347147,3054.0,3052.7,6.27578]
[1720539188612,1.1347147,3053.9,3052.8,0.928349]
[1720539188798,1.21659338,3053.8,3052.7,3.0]
[1720539189004,1.21659387,3053.7,3052.6,2.297]
[1720539189208,1.2165987,3053.6,3052.1,2.3986]
[1720539189498,1.2165987,3053.6,3051.3,3.27723]
[1720539189499,1.1347147,3053.5,3051.4,2.4309]
[1720539189728,0.08190447,3053.4,3051.4,2.4309]
[1720539189925,0.08190447,3053.4,3051.5,3.84782]
[1720539190124,0.08190447,3053.4,3051.5,0.57081]
[1720539190125,1.68515292,3053.3,3051.5,0.57081]
[1720539190434,3.68640428,3053.2,3051.4,2.4309]
[1720539190602,4.68515292,3053.1,3051.4,2.4309]
[1720539190810,1.83487823,3053.0,3051.4,2.4309]
[1720539191111,1.13515292,3052.9,3051.4,5.70799]
[1720539191320,1.13515292,3052.9,3051.5,3.27707]
[1720539191528,0.0819057,3052.8,3051.5,3.34259365]
[1720539191703,1.13515292,3052.7,3051.6,4.23731937]
[1720539191903,0.61781605,3053.0,3051.6,4.23731937]
[1720539191904,0.61781605,3053.0,3051.7,3.27684]
[1720539192139,1.4111,3053.5,3051.6,4.23731937]
[1720539192140,1.21699189,3052.9,3051.6,0.96044937]
[1720539192303,1.21699728,3052.8,3051.6,0.96044937]
[1720539192504,3.08190471,3053.4,3051.7,0.42375194]
[1720539192728,4.13507598,3053.3,3051.7,3.70053194]
[1720539192927,1.63867232,3053.2,3051.8,0.76609813]
[1720539193098,0.08189827,3053.2,3051.8,0.76609813]
[1720539193299,1.13503843,3053.1,3051.8,0.76609813]
[1720539193608,1.13503843,3053.0,3051.7,0.42375194]
[1720539193813,1.13503843,3053.0,3051.5,3.27701]
[1720539193814,1.2169367,3052.9,3051.4,9.53908]
[1720539193996,1.13503843,3052.8,3051.4,13.770058]
[1720539194200,0.08190528,3052.7,3051.4,7.215808]
[1720539194400,1.13503843,3052.6,3051.4,3.384808]
[1720539194840,0.08190879,3052.5,3051.4,2.4309]
[1720539195145,1.13503843,3052.4,3051.4,2.4309]
[1720539195359,0.08191499,3052.3,3051.4,2.4309]
[1720539195500,1.4111,3052.6,3051.4,2.4309]
[1720539195826,1.21719705,3052.5,3051.4,2.4309]
[1720539196000,1.13527748,3052.4,3051.4,2.4309]
[1720539196208,0.08191956,3052.3,3051.4,2.4309]
[1720539196653,4.79828035,3053.2,3051.4,2.67399]
[1720539196654,0.0819195,3052.5,3051.4,2.67399]
[1720539196804,0.0819195,3052.6,3051.4,2.67399]
[1720539197149,1.13529958,3052.5,3051.4,2.4309]
[1720539197310,1.13529958,3052.5,3051.0,3.0]
[1720539197311,2.28126358,3052.4,3050.9,2.3638]
[1720539197499,1.96846087,3052.3,3050.9,2.3638]
[1720539197703,1.21726083,3052.2,3050.9,2.3638]
[1720539197928,0.08192632,3052.2,3050.9,5.6415]
[1720539198113,1.13541284,3052.1,3050.9,8.91915]
[1720539198439,0.08192632,3052.2,3050.9,8.91915]
[1720539198440,0.08192632,3052.2,3051.0,0.891915]
[1720539198641,1.14600479,3052.7,3051.0,0.891915]
[1720539198853,2.29988397,3052.6,3051.1,0.6533365]
[1720539199058,2.28138844,3052.5,3051.1,0.6533365]
[1720539199211,1.06408492,3052.4,3051.1,0.6533365]
[1720539199413,0.41646721,3052.3,3051.1,0.6533365]
[1720539199662,0.41646721,3052.3,3050.7,0.1135974]
[1720539199663,1.4111,3052.1,3050.7,0.1135974]
[1720539199821,2.80435106,3052.0,3050.7,0.1135974]
[1720539200055,2.90428317,3051.9,3050.7,0.1135974]
[1720539200235,5.27052608,3051.8,3050.7,0.1135974]
[1720539200438,1.38311567,3051.7,3050.7,0.1135974]
[1720539200649,1.30117094,3051.6,3050.7,0.1135974]
[1720539200852,2.62876019,3051.5,3050.7,0.1135974]
[1720539201025,5.18771522,3051.4,3050.7,0.1135974]
[1720539201227,1.21737407,3051.3,3050.7,0.1135974]
[1720539201459,0.55,3051.7,3050.7,0.1135974]
[1720539201460,0.08194572,3051.2,3050.7,0.1135974]
[1720539201621,4.13439701,3051.6,3050.7,0.1135974]
[1720539201820,2.18817024,3051.5,3050.7,0.1135974]
[1720539202021,2.27011601,3051.4,3050.7,0.1135974]
[1720539202246,1.13571895,3051.3,3050.7,0.1135974]
[1720539202522,0.355,3051.6,3050.7,0.1135974]
[1720539202523,0.08195016,3051.2,3050.7,0.1135974]
[1720539203418,0.08194943,3051.5,3050.7,0.1135974]
[1720539203620,1.13578215,3051.4,3050.7,0.1135974]
[1720539203856,0.63194943,3051.5,3050.7,0.1135974]
[1720539203857,0.08194942,3051.3,3050.7,0.1135974]
[1720539204038,0.39014436,3051.3,3050.7,0.1135974]
[1720539204247,0.08194938,3051.2,3050.7,0.1135974]
[1720539208060,0.08194759,3051.3,3050.7,0.1135974]
[1720539208647,0.08194485,3051.6,3050.7,0.1135974]
[1720539208942,1.34458454,3052.4,3050.7,0.1135974]
[1720539208943,0.17792609,3051.8,3050.8,0.06554964]
[1720539209154,0.08192356,3052.6,3050.7,3.3914674]
[1720539209469,1.1354523,3052.5,3050.7,3.3914674]
[1720539209637,1.44451774,3052.4,3050.8,0.66693974]
[1720539209824,1.44451774,3052.4,3050.7,0.1135974]
[1720539209825,1.1354523,3052.3,3050.7,0.1135974]
[1720539210165,0.08193083,3052.2,3050.7,3.3915074]
[1720539210324,0.08193083,3052.2,3050.8,0.33915074]
[1720539211169,0.08192462,3052.5,3050.9,2.2658]
[1720539211467,0.08192355,3052.5,3051.2,3.27739]
[1720539211624,0.08192355,3052.5,3051.3,0.327739]
[1720539211824,0.08192355,3052.5,3051.1,3.27749]
[1720539212058,0.08192355,3052.5,3051.2,3.27738]
[1720539212463,0.08191145,3052.7,3051.2,3.27738]
[1720539212647,0.08191145,3052.7,3051.3,0.655487]
[1720539213979,0.08191145,3052.7,3050.9,2.2658]
[1720539214270,1.68531294,3052.6,3050.9,11.82108]
[1720539214466,1.68531294,3052.6,3050.9,8.54343]
[1720539214467,1.21723086,3052.5,3050.9,8.54343]
[1720539214667,0.08191792,3052.5,3050.9,11.82108]
[1720539214869,0.08191792,3052.5,3051.0,4.49363307]
[1720539215096,0.08191792,3052.5,3051.1,3.0]
[1720539215380,0.08191788,3052.6,3051.2,3.27739]
[1720539215578,0.34255005,3052.8,3051.3,0.72101135]
[1720539215884,1.75291149,3053.1,3051.6,3.27696]
[1720539216036,1.21702702,3053.0,3051.6,3.27696]
[1720539216359,0.39951051,3053.4,3051.7,3.34237121]
[1720539216559,1.13505252,3053.3,3051.8,3.34225795]
[1720539216859,1.21694973,3053.2,3051.7,3.27685]
[1720539217065,1.13505252,3053.1,3051.8,0.3850099]
[1720539217243,1.13505252,3053.0,3051.6,6.850139]
[1720539217447,0.08189721,3053.0,3051.7,0.57858973]
[1720539217688,0.08189721,3053.0,3051.3,3.27724]
[1720539217689,1.4111,3052.8,3051.0,5.04702307]
[1720539217866,1.4111,3052.8,3051.1,5.4555]
[1720539217867,1.21696402,3052.7,3051.1,5.4555]
[1720539218080,1.13505252,3052.6,3051.1,8.733]
[1720539218298,0.31711312,3052.5,3051.2,1.2564]
[1720539218473,1.13505252,3052.4,3051.3,3.27727]
[1720539218675,3.0,3052.7,3051.3,3.27727]
[1720539218974,1.13518032,3052.6,3051.4,3.27717]
[1720539219175,1.13519184,3052.5,3051.5,0.327717]
[1720539219391,1.21712245,3052.4,3051.1,5.4555]
[1720539219703,1.1352109,3052.3,3051.2,0.92865]
[1720539220001,1.4111,3052.5,3051.1,5.4555]
[1720539220002,1.1352109,3052.4,3051.1,5.4555]
[1720539220303,1.1352109,3052.3,3051.1,5.4555]
[1720539220460,1.1352109,3052.4,3051.2,0.873311]
[1720539220661,3.63191767,3052.9,3051.3,3.27729]
[1720539220885,2.17645285,3052.8,3051.4,0.4150601]
[1720539221204,1.21715432,3052.7,3051.4,0.4150601]
[1720539221498,1.13524499,3052.6,3051.4,0.4150601]
[1720539221801,1.13524499,3052.5,3051.5,0.36923501]
[1720539221999,1.13523991,3052.4,3051.5,0.36923501]
[1720539222161,3.08190635,3052.9,3051.5,3.64628501]
[1720539222365,1.13514336,3052.8,3051.3,6.55444]
[1720539222597,0.57801635,3052.9,3051.4,3.7427751]
[1720539222598,2.43024882,3052.7,3051.4,3.7427751]
[1720539222808,1.13514336,3052.6,3051.4,3.7427751]
[1720539223110,0.08190944,3052.5,3051.4,0.7427751]
[1720539223279,1.13514336,3052.4,3051.1,2.4555]
[1720539223482,1.26776191,3052.3,3051.1,2.4555]
[1720539223804,1.2170697,3052.2,3051.1,2.4555]
[1720539223972,1.13514336,3052.1,3051.1,2.4555]
[1720539224171,0.08192633,3052.0,3051.1,2.4555]
[1720539224406,1.13514336,3051.9,3051.1,2.70105]
[1720539224598,6.2659991,3053.5,3051.1,2.4555]
[1720539224599,1.21706376,3052.4,3051.1,2.4555]
[1720539224919,2.17749865,3052.3,3051.1,2.4555]
[1720539225076,1.21733403,3052.2,3051.1,2.4555]
[1720539225281,1.13541355,3052.1,3051.1,2.4555]
[1720539225497,0.08192476,3052.0,3051.1,2.4555]
[1720539225702,2.17861839,3052.3,3050.8,6.27774]
[1720539225873,3.6714016,3052.2,3050.9,0.96692574]
[1720539226070,1.13541341,3052.1,3050.9,0.96692574]
[1720539226296,0.08192766,3052.0,3050.9,0.96692574]
[1720539226503,1.13541341,3051.9,3051.0,0.39669257]
[1720539227005,1.13541341,3052.3,3051.0,0.39669257]
[1720539227205,1.4111,3052.0,3050.7,0.1135974]
[1720539227513,2.97602672,3051.9,3050.7,0.1135974]
[1720539227682,3.69802369,3051.8,3050.7,0.1135974]
[1720539227888,7.38220856,3051.7,3050.7,0.1135974]
[1720539228082,2.89408155,3051.6,3050.7,0.1135974]
[1720539228284,1.21763271,3051.5,3050.7,0.1135974]
[1720539228612,1.13568697,3051.4,3050.7,0.1135974]
[1720539228779,1.21763211,3051.3,3050.7,0.1135974]
[1720539228982,1.13568697,3051.2,3050.7,0.1135974]
[1720539229787,1.13568697,3051.2,3050.8,2.4311]
[1720539230092,0.34189501,3052.2,3050.9,0.25446974]
[1720539230093,3.08193195,3051.9,3050.9,0.25446974]
[1720539230294,1.13550568,3051.8,3050.9,0.25446974]
[1720539230501,1.13550568,3051.7,3050.8,5.70891]
[1720539230686,1.13550568,3051.6,3050.8,5.70891]
[1720539230888,0.08192467,3052.1,3050.9,0.91003874]
[1720539231116,0.08192467,3052.1,3051.0,3.27759]
[1720539231117,1.13546159,3052.0,3051.0,3.27759]
[1720539231270,1.13546159,3051.9,3051.1,0.42531681]
[1720539231473,0.08192424,3052.2,3051.1,0.42531681]
[1720539231686,1.1353709,3052.1,3051.1,0.42531681]
[1720539231871,1.1353709,3052.0,3051.2,0.37029068]
[1720539232071,1.1353709,3051.9,3051.2,0.37029068]
[1720539232321,1.1353709,3052.1,3051.1,0.42531681]
[1720539232520,2.11575777,3052.0,3051.1,0.42531681]
[1720539232741,1.1353709,3051.9,3051.1,0.42531681]
[1720539233029,1.1353709,3051.8,3050.9,3.27763]
[1720539233234,1.1353709,3052.0,3050.9,3.27763]
[1720539233419,1.1353709,3051.9,3051.0,0.570873]
[1720539233595,1.1353709,3051.9,3051.0,3.848463]
[1720539233796,1.1353709,3051.8,3051.0,3.848463]
[1720539234025,1.21729047,3052.2,3051.0,3.848463]
[1720539234200,2.28113739,3052.1,3051.1,0.7126093]
[1720539234408,2.28110531,3052.0,3051.1,0.7126093]
[1720539234608,1.35394214,3052.3,3051.3,3.27728]
[1720539234936,3.0,3052.7,3051.3,3.27728]
[1720539234937,1.13528388,3052.2,3051.3,3.27728]
[1720539235140,1.77546943,3052.6,3051.3,3.27728]
[1720539235141,3.0,3052.5,3051.4,0.327728]
[1720539235309,3.63534058,3052.4,3051.4,0.327728]
[1720539235511,1.77530528,3052.6,3051.5,5.59542898]
[1720539235512,2.28062536,3052.3,3051.5,5.59542898]
[1720539235821,1.13518929,3052.2,3051.5,2.2529]
[1720539236052,1.13518929,3052.1,3051.5,2.805907]
[1720539236211,1.13518929,3052.3,3051.5,2.805907]
[1720539236424,1.35471522,3052.5,3051.5,6.082917]
[1720539236425,1.13518929,3052.2,3051.5,6.082917]
[1720539236738,1.35471522,3052.5,3051.6,1.2637217]
[1720539236898,2.28035353,3052.4,3051.5,2.2529]
[1720539237095,1.13520444,3052.3,3051.5,2.2529]
[1720539237346,1.13520444,3052.2,3051.5,2.2529]
[1720539237537,1.13520444,3052.4,3051.5,5.52992]
[1720539237744,1.13520444,3052.3,3051.6,0.880703]
[1720539237951,4.35471522,3052.6,3051.6,0.880703]
[1720539237952,3.0,3052.6,3051.6,0.880703]
[1720539238106,3.63573659,3052.5,3051.6,0.880703]
[1720539238304,2.28102334,3052.4,3051.6,0.880703]
[1720539238636,1.13520359,3052.3,3051.6,0.880703]
[1720539238843,1.13520359,3052.4,3051.7,0.3133603]
[1720539239017,1.13520359,3052.3,3051.7,0.3133603]
[1720539239199,1.13520359,3052.4,3051.7,0.3133603]
[1720539239399,1.13520359,3052.3,3051.7,0.3133603]
[1720539239634,1.13520359,3052.2,3051.7,0.3133603]
[1720539239949,1.35494056,3052.5,3051.5,5.52991]
[1720539239950,1.13520359,3052.1,3051.5,2.2529]
[1720539240104,1.43684711,3052.5,3051.5,2.2529]
[1720539240105,1.13520359,3052.0,3051.5,2.2529]
[1720539240305,1.13520359,3052.4,3051.5,2.2529]
[1720539240507,0.16599886,3052.3,3051.6,0.22529]
[1720539240728,1.35494056,3052.6,3051.6,3.50215]
[1720539240941,0.08189757,3053.1,3051.7,0.875505]
[1720539241142,1.3556131,3052.8,3051.7,0.875505]
[1720539241421,1.3556131,3052.6,3051.6,6.50224]
[1720539241624,2.28111846,3052.5,3051.7,0.875514]
[1720539241839,5.03341966,3053.1,3051.7,0.875514]
[1720539241840,1.13512975,3052.4,3051.7,0.875514]
[1720539242014,8.54512975,3052.6,3052.1,3.831]
[1720539242221,13.5056131,3052.9,3052.1,3.831]
[1720539242222,7.41,3052.9,3052.4,3.27609]
[1720539242532,7.41,3052.9,3052.6,6.55164]
[1720539242705,7.41,3052.9,3052.7,2.4771]
[1720539243127,7.41,3052.9,3052.8,3.27568]
[1720539243441,1.69451638,3054.1,3052.7,2.4771]
[1720539243442,7.41,3053.4,3053.0,3.27539]
[1720539244050,7.41,3053.4,3052.9,3.27548]
[1720539244210,7.41,3053.4,3052.7,3.435507]
[1720539244402,7.41,3053.4,3052.9,3.27557]
[1720539244605,7.41,3053.4,3053.1,3.27533]
[1720539244818,7.41,3053.4,3052.7,9.986927]
[1720539245027,7.41,3053.4,3052.8,1.3817927]
[1720539245314,7.41,3053.4,3052.8,4.6574327]
[1720539245616,7.41,3053.4,3052.8,1.3817927]
[1720539246342,7.41,3053.4,3053.0,3.27543]
[1720539246761,12.15,3053.7,3053.2,3.27518]
[1720539247046,7.41,3053.8,3053.4,3.27496]
[1720539247222,7.41,3053.8,3053.5,3.27492]
[1720539247423,7.41,3053.8,3053.6,0.654988]
[1720539249633,7.41,3053.8,3053.6,3.929808]
[1720539250035,7.41,3053.8,3053.7,3.27471]
[1720539250250,19.56,3054.3,3053.7,2.2534]
[1720539250813,19.56,3054.3,3053.9,3.27449]
[1720539251017,7.41,3054.7,3053.9,3.827279]
[1720539251316,7.41,3054.7,3053.9,3.27449]